fUSD/lending_fUSD_20250522
["ID","MTS","AMOUNT","RATE_DAILY","PERIOD"]
[362012107,1747935077288,-546.16,0.00034793,5]
[362012108,1747935077298,-420.0,0.00034793,5]
[362012109,1747935077307,-420.0,0.00034793,5]
[362012110,1747935077317,-1565.37,0.00034793,5]
[362012111,1747935077326,-426.73,0.00034793,5]
[362012112,1747935077335,-482.45,0.00034793,5]
[362012113,1747935077345,-420.0,0.00034793,5]
[362012114,1747935077355,-420.0,0.00034793,5]
[362012115,1747935077364,-4352.7,0.00034793,5]
[362012116,1747935077374,-420.0,0.00034793,5]
[362012117,1747935077383,-3225.07,0.00034793,5]
[362012118,1747935077393,-674.14,0.00034793,5]
[362012119,1747935077403,-1523.03,0.00034793,5]
[362012120,1747935077413,-420.0,0.00034793,5]
[362012121,1747935077423,-420.0,0.00034793,5]
[362012122,1747935077432,-867.25,0.00034793,5]
[362012123,1747935077442,-1360.92,0.00034793,5]
[362012124,1747935077451,-420.0,0.00034793,5]
[362012125,1747935077461,-420.0,0.00034793,5]
[362012126,1747935077471,-321.89136519,0.00034793,5]
[362012127,1747935077480,-443.04,0.00034793,5]
[362012128,1747935077490,-2555.07,0.00034793,5]
[362012129,1747935077499,-420.0,0.00034793,5]
[362012130,1747935077509,-420.0,0.00034793,5]
[362012131,1747935077518,-462.41,0.00034793,5]
[362012132,1747935077529,-420.0,0.00034793,5]
[362012133,1747935077539,-14415.92,0.00034793,5]
[362012134,1747935077549,-867.04,0.00034793,5]
[362012135,1747935077558,-420.0,0.00034793,5]
[362012136,1747935077568,-420.0,0.00034793,5]
[362012137,1747935077578,-420.0,0.00034793,5]
[362012138,1747935077587,-976.26,0.00034793,5]
[362012139,1747935077597,-582.57,0.00034793,5]
[362012140,1747935077607,-1157.52,0.00034793,5]
[362012141,1747935077617,-420.0,0.00034793,5]
[362012142,1747935077627,-437.12,0.00034793,5]
[362012143,1747935077637,-424.93,0.00034793,5]
[362012144,1747935077648,-527.89,0.00034793,5]
[362012145,1747935077658,-420.0,0.00034793,5]
[362012146,1747935077669,-420.0,0.00034793,5]
[362012147,1747935077679,-420.0,0.00034793,5]
[362012148,1747935077688,-420.0,0.00034793,5]
[362012149,1747935077698,-420.0,0.00034793,5]
[362012150,1747935077708,-534.29,0.00034793,5]
[362012151,1747935077718,-574.48,0.00034793,5]
[362012152,1747935077729,-1196.46,0.00034793,5]
[362012153,1747935077739,-636.39,0.00034793,5]
[362012154,1747935077749,-1119.48,0.00034793,2]
[362012155,1747935077758,-498.52,0.00034793,5]
[362012156,1747935077767,-806.79,0.00034793,5]
[362012157,1747935077777,-572.8,0.00034793,5]
[362012158,1747935077787,-420.0,0.00034793,5]
[362012159,1747935077796,-420.0,0.00034793,5]
[362012160,1747935077806,-420.0,0.00034793,5]
[362012161,1747935077816,-420.0,0.00034793,5]
[362012162,1747935077825,-420.0,0.00034793,5]
[362012163,1747935077834,-849.42,0.00034793,5]
[362012164,1747935077844,-507.68,0.00034793,5]
[362012165,1747935077854,-420.0,0.00034793,5]
[362012166,1747935077863,-614.28,0.00034793,5]
[362012167,1747935077873,-420.0,0.00034793,5]
[362012168,1747935077883,-7277.43,0.00034793,5]
[362012169,1747935077892,-420.0,0.00034793,5]
[362012170,1747935077902,-420.0,0.00034793,5]
[362012171,1747935077911,-420.0,0.00034793,5]
[362012172,1747935077921,-190.03516705,0.00034793,5]
[362012173,1747935077932,-639.67,0.00034793,5]
[362012174,1747935077942,-733.4,0.00034793,5]
[362012175,1747935077952,-756.23,0.00034793,5]
[362012176,1747935077961,-440.65,0.00034793,5]
[362012177,1747935077970,-649.32,0.00034793,5]
[362012178,1747935077983,-420.0,0.00034793,5]
[362012179,1747935077992,-507.99360813,0.00034793,5]
[362012180,1747935078002,-420.0,0.00034793,5]
[362012181,1747935078011,-420.0,0.00034793,5]
[362012182,1747935078020,-420.0,0.00034793,5]
[362012183,1747935078030,-420.0,0.00034793,5]
[362012184,1747935078039,-420.0,0.00034793,5]
[362012185,1747935078049,-420.0,0.00034793,5]
[362012186,1747935078059,-420.0,0.00034793,5]
[362012187,1747935078068,-741.9,0.00034793,5]
[362012188,1747935078078,-497.19,0.00034793,5]
[362012189,1747935078087,-1998.51,0.00034793,5]
[362012190,1747935078098,-470.36,0.00034793,5]
[362012191,1747935078107,-420.0,0.00034793,5]
[362012192,1747935078117,-639.49,0.00034793,5]
[362012193,1747935078127,-420.0,0.00034793,5]
[362012194,1747935078140,-1494.47,0.00034793,5]
[362012195,1747935078150,-511.54,0.00034793,5]
[362012196,1747935078160,-420.0,0.00034793,5]
[362012197,1747935078171,-420.0,0.00034793,5]
[362012198,1747935078182,-708.15,0.00034793,5]
[362012199,1747935078193,-420.0,0.00034793,5]
[362012200,1747935078202,-503.81,0.00034793,5]
[362012201,1747935078213,-1263.37,0.00034793,5]
[362012202,1747935078223,-536.17,0.00034793,5]
[362012203,1747935078234,-420.0,0.00034793,5]
[362012204,1747935078245,-517.04,0.00034793,5]
[362012205,1747935078255,-420.0,0.00034793,5]
[362012206,1747935078265,-420.0,0.00034793,5]
[362012207,1747935078275,-517.27,0.00034793,5]
[362012208,1747935078285,-420.0,0.00034793,5]
[362012209,1747935078295,-420.0,0.00034793,5]
[362012210,1747935078305,-521.46,0.00034793,5]
[362012211,1747935078315,-742.81,0.00034793,5]
[362012212,1747935078325,-1985.71,0.00034793,2]
[362012213,1747935078335,-1151.71,0.00034793,5]
[362012214,1747935078348,-420.0,0.00034793,5]
[362012215,1747935078357,-469.35,0.00034793,5]
[362012216,1747935078367,-420.0,0.00034793,5]
[362012217,1747935078377,-420.0,0.00034793,5]
[362012218,1747935078387,-420.0,0.00034793,5]
[362012219,1747935078397,-625.55,0.00034793,5]
[362012220,1747935078407,-592.81,0.00034793,5]
[362012221,1747935078417,-420.0,0.00034793,5]
[362012222,1747935078427,-570.36,0.00034793,5]
[362012223,1747935078436,-420.0,0.00034793,5]
[362012224,1747935078446,-420.0,0.00034793,5]
[362012225,1747935078457,-759.32,0.00034793,5]
[362012226,1747935078467,-432.61,0.00034793,5]
[362012227,1747935078477,-311.61045801,0.00034793,5]
[362012228,1747935078488,-420.0,0.00034793,5]
[362012229,1747935078498,-650.73,0.00034793,5]
[362012230,1747935078509,-637.2,0.00034793,5]
[362012231,1747935078520,-420.0,0.00034793,5]
[362012232,1747935078530,-420.0,0.00034793,5]
[362012233,1747935078539,-420.0,0.00034793,5]
[362012234,1747935078549,-420.0,0.00034793,5]
[362012235,1747935078559,-602.38,0.00034793,5]
[362012236,1747935078569,-2969.88,0.00034793,5]
[362012237,1747935078579,-420.0,0.00034794,14]
[362012238,1747935078589,-420.0,0.00034794,5]
[362012239,1747935078599,-420.0,0.00034794,5]
[362012240,1747935078609,-300.0,0.00034794,5]
[362012241,1747935078619,-597.49,0.00034794,5]
[362012242,1747935078629,-420.14,0.00034794,5]
[362012243,1747935078638,-420.0,0.00034794,5]
[362012244,1747935078648,-420.0,0.00034794,5]
[362012245,1747935078658,-346.88904974,0.00034794,5]
[362012246,1747935078668,-420.0,0.00034794,5]
[362012247,1747935078678,-420.0,0.00034794,5]
[362012248,1747935078689,-530.06059993,0.00034794,5]
[362012249,1747935078699,-427.8,0.00034794,5]
[362012250,1747935078709,-420.0,0.00034794,5]
[362012251,1747935078719,-420.0,0.00034794,5]
[362012252,1747935078730,-421.55,0.00034794,5]
[362012253,1747935078740,-420.0,0.00034794,5]
[362012254,1747935078749,-420.0,0.00034794,5]
[362012255,1747935078826,-420.0,0.00034794,5]
[362012256,1747935078837,-420.0,0.00034794,5]
[362012257,1747935078848,-420.0,0.00034794,5]
[362012258,1747935078858,-420.0,0.00034794,5]
[362012259,1747935078868,-420.0,0.00034794,5]
[362012260,1747935078877,-420.0,0.00034794,5]
[362012261,1747935078888,-455.43,0.00034794,5]
[362012262,1747935078898,-420.0,0.00034794,5]
[362012263,1747935078907,-420.0,0.00034794,5]
[362012264,1747935078917,-603.05,0.00034794,5]
[362012265,1747935078927,-420.0,0.00034794,5]
[362012266,1747935078937,-420.0,0.00034794,5]
[362012267,1747935078947,-420.0,0.00034794,5]
[362012268,1747935078956,-420.0,0.00034794,5]
[362012269,1747935078966,-420.0,0.00034794,5]
[362012270,1747935078975,-420.0,0.00034794,5]
[362012271,1747935078985,-454.01,0.00034794,5]
[362012272,1747935078995,-420.0,0.00034794,5]
[362012273,1747935079004,-420.0,0.00034794,5]
[362012274,1747935079014,-420.0,0.00034794,5]
[362012275,1747935079024,-420.0,0.00034794,5]
[362012276,1747935079034,-420.0,0.00034794,5]
[362012277,1747935079043,-420.0,0.00034794,5]
[362012278,1747935079053,-457.94,0.00034794,5]
[362012279,1747935079063,-420.0,0.00034794,5]
[362012280,1747935079072,-956.72,0.00034794,5]
[362012281,1747935079082,-564.7,0.00034794,5]
[362012282,1747935079091,-483.05,0.00034794,5]
[362012283,1747935079101,-795.32,0.00034794,5]
[362012284,1747935079111,-420.0,0.00034794,5]
[362012285,1747935079120,-465.07,0.00034794,5]
[362012286,1747935079130,-456.27,0.00034794,5]
[362012287,1747935079141,-420.0,0.00034794,5]
[362012288,1747935079150,-420.0,0.00034794,5]
[362012289,1747935079159,-420.0,0.00034794,5]
[362012290,1747935079168,-420.0,0.00034794,5]
[362012291,1747935079178,-652.27,0.00034794,5]
[362012292,1747935079188,-420.0,0.00034794,5]
[362012293,1747935079197,-552.16,0.00034794,5]
[362012294,1747935079206,-420.0,0.00034794,5]
[362012295,1747935079216,-420.0,0.00034794,5]
[362012296,1747935079225,-616.4,0.00034794,5]
[362012297,1747935079234,-420.0,0.00034794,5]
[362012298,1747935079243,-420.0,0.00034794,5]
[362012299,1747935079253,-420.0,0.00034794,5]
[362012300,1747935079262,-420.0,0.00034794,5]
[362012301,1747935079271,-692.55,0.00034794,5]
[362012302,1747935079280,-420.0,0.00034794,5]
[362012303,1747935079290,-497.14,0.00034794,5]
[362012304,1747935079299,-1120.41,0.00034794,5]
[362012305,1747935079308,-420.0,0.00034794,5]
[362012306,1747935079318,-420.0,0.00034794,5]
[362012307,1747935079327,-420.0,0.00034794,5]
[362012308,1747935079337,-420.0,0.00034794,5]
[362012309,1747935079346,-709.8,0.00034794,5]
[362012310,1747935079356,-498.98399125,0.00034794,5]
[362012311,1747935079365,-420.0,0.00034794,5]
[362012312,1747935079374,-545.28,0.00034794,5]
[362012313,1747935079383,-804.9,0.00034794,5]
[362012314,1747935079393,-420.0,0.00034794,5]
[362012315,1747935079402,-420.0,0.00034794,5]
[362012316,1747935079411,-420.0,0.00034794,5]
[362012317,1747935079420,-714.59,0.00034794,5]
[362012318,1747935079430,-420.0,0.00034794,5]
[362012319,1747935079440,-296.77498538,0.00034794,5]
[362012320,1747935079449,-529.89,0.00034794,5]
[362012321,1747935079458,-420.0,0.00034794,5]
[362012322,1747935079468,-420.0,0.00034794,5]
[362012323,1747935079477,-420.0,0.00034794,5]
[362012324,1747935079487,-507.74,0.00034794,5]
[362012325,1747935079497,-657.62,0.00034794,5]
[362012326,1747935079507,-420.0,0.00034794,5]
[362012327,1747935079516,-841.13,0.00034794,5]
[362012328,1747935079526,-420.0,0.00034794,5]
[362012329,1747935079535,-420.0,0.00034794,5]
[362012330,1747935079544,-420.0,0.00034794,5]
[362012331,1747935079554,-420.0,0.00034794,5]
[362012332,1747935079564,-6426.9,0.000348,7]
[362012333,1747935079573,-480.68817545,0.0003488,120]
[362012334,1747935079591,-6519.31182455,0.0003488,120]
[362012335,1747935079601,-151.0,0.0003488,7]
[362012336,1747935079611,-200.0,0.00034899,120]
[362012337,1747935079620,-160.0,0.000349,10]
[362012338,1747935079630,-20000.0,0.000349,120]
[362012339,1747935079639,-166.66666666,0.00034904,30]
[362012340,1747935079649,-458.34,0.00034932,2]
[362012341,1747935079660,-7231.10493647,0.0003495,2]
[362012342,1747935079669,-500.0,0.00034953,7]
[362012343,1747935079679,-16179.0,0.00034986,2]
[362012344,1747935079688,-641.67,0.00034996,2]
[362012345,1747935079697,-257.4875,0.00034999,2]
[362012346,1747935079707,-150.0,0.00034999,2]
[362012347,1747935079716,-215863.37007906,0.00035,60]
[362012348,1747935079730,-4158.12569963,0.00035,60]
[362012349,1747935079766,-11171.9032433,0.00035,60]
[362012350,1747935079781,-663.16372602,0.00035,60]
[362012352,1747935279024,150.0,0.0002,2]
[362012354,1747935883868,316.87,0.00013699,2]
[362012355,1747935954139,-316.87,0.00020187,2]
[362012356,1747935954160,-316.87,0.00026676,2]
[362012357,1747935954180,-158.138233,0.00030969,2]
[362012358,1747935954201,-513.90993346,0.00031125,2]
[362012359,1747935958090,-39.93006654,0.00031125,2]
[362012360,1747935958112,-640.29,0.00032544,2]
[362012361,1747935958134,-13.07797695,0.00032553,2]
[362012362,1747936049099,-207.81675299,0.0003247,2]
[362012363,1747936049122,-627.21202305,0.00032553,2]
[362012364,1747936049144,-640.29,0.00032561,2]
[362012365,1747936049166,-302.21441134,0.0003257,2]
[362012366,1747936090315,65083.72829784,0.00017,2]
[362012367,1747936090336,18990.15798606,0.00017,2]
[362012382,1747936232107,-200.0,0.000231,2]
[362012384,1747936232118,-200.0,0.000251,2]
[362012386,1747936232128,-162.92,0.0003162,2]
[362012388,1747936232137,-2.99130222,0.0003176,2]
[362012391,1747936232153,-149.25869778,0.0003176,2]
[362012393,1747936232163,-200.2,0.00031944,2]
[362012395,1747936232172,-150.32322337,0.0003257,2]
[362012397,1747936232183,-187.75236529,0.0003257,2]
[362012399,1747936232193,-640.29,0.00032578,2]
[362012401,1747936232203,-640.29,0.00032587,2]
[362012403,1747936232212,-640.29,0.00032595,2]
[362012405,1747936232221,-640.29,0.00032604,2]
[362012407,1747936232230,-640.29,0.00032613,2]
[362012408,1747936232239,-640.29,0.00032621,2]
[362012409,1747936232248,-640.29,0.0003263,2]
[362012410,1747936232258,-1600.0,0.00032637,3]
[362012411,1747936232267,-640.29,0.00032638,2]
[362012412,1747936232276,-640.29,0.00032647,2]
[362012413,1747936232286,-640.29,0.00032656,2]
[362012414,1747936232295,-155.38,0.0003266,120]
[362012415,1747936232305,-640.29,0.00032664,2]
[362012416,1747936232314,-640.29,0.00032673,2]
[362012417,1747936232323,-640.29,0.00032681,2]
[362012418,1747936232332,-1000.0,0.00032684,2]
[362012419,1747936232343,-640.29,0.0003269,2]
[362012420,1747936232352,-640.29,0.00032698,2]
[362012421,1747936232363,-640.29,0.00032707,2]
[362012422,1747936232381,-201.63740272,0.000329,27]
[362012423,1747936232393,-150.0,0.00033148,2]
[362012424,1747936232402,-231.65094012,0.00033149,5]
[362012425,1747936232422,-188.34905988,0.00033149,5]
[362012426,1747936232430,-420.0,0.00033149,5]
[362012427,1747936232439,-163.44943801,0.00033149,5]
[362012428,1747936232447,-420.0,0.00033149,5]
[362012429,1747936232456,-420.0,0.00033149,5]
[362012430,1747936232465,-420.0,0.00033149,5]
[362012432,1747936232474,-420.0,0.00033149,5]
[362012434,1747936232483,-316.11151061,0.00033149,5]
[362012456,1747936232702,-103.88848939,0.00033149,5]
[362012458,1747936232712,-420.0,0.00033149,5]
[362012460,1747936232721,-420.0,0.00033149,5]
[362012462,1747936232731,-420.0,0.00033149,5]
[362012464,1747936232740,-420.0,0.00033149,5]
[362012466,1747936232749,-420.0,0.00033149,5]
[362012468,1747936232758,-420.0,0.00033149,5]
[362012469,1747936232768,-420.0,0.00033149,5]
[362012471,1747936232778,-302.45284142,0.00033149,5]
[362012474,1747936232791,-117.54715858,0.00033149,5]
[362012476,1747936232801,-420.0,0.00033149,5]
[362012477,1747936232810,-420.0,0.00033149,5]
[362012479,1747936232819,-420.0,0.00033149,5]
[362012481,1747936232828,-420.0,0.00033149,5]
[362012483,1747936232838,-420.0,0.00033149,5]
[362012485,1747936232847,-420.0,0.00033149,5]
[362012487,1747936232856,-420.0,0.00033149,5]
[362012489,1747936232867,-394.16505252,0.00033149,5]
[362012491,1747936232877,-420.0,0.00033149,5]
[362012493,1747936232886,-420.0,0.00033149,5]
[362012495,1747936232895,-322.95532254,0.00033149,5]
[362012498,1747936232908,-97.04467746,0.00033149,5]
[362012500,1747936232918,-420.0,0.00033149,5]
[362012502,1747936232927,-507.40453241,0.00033149,5]
[362012503,1747936232936,-420.0,0.00033149,5]
[362012505,1747936232946,-420.0,0.00033149,5]
[362012507,1747936232955,-420.0,0.00033149,5]
[362012509,1747936232966,-420.0,0.00033149,5]
[362012511,1747936232975,-420.0,0.00033149,5]
[362012513,1747936232984,-420.0,0.00033149,5]
[362012515,1747936232993,-420.0,0.00033149,5]
[362012517,1747936233002,-420.0,0.00033149,5]
[362012519,1747936233011,-420.0,0.00033149,5]
[362012521,1747936233024,-420.0,0.00033149,5]
[362012524,1747936233033,-420.0,0.00033149,5]
[362012526,1747936233043,-480.68522039,0.00033149,5]
[362012528,1747936233052,-420.0,0.00033149,5]
[362012530,1747936233062,-420.0,0.00033149,5]
[362012532,1747936233072,-420.0,0.00033149,5]
[362012534,1747936233082,-420.0,0.00033149,5]
[362012536,1747936233092,-420.0,0.00033149,5]
[362012538,1747936233102,-420.0,0.00033149,5]
[362012540,1747936233113,-420.0,0.00033149,5]
[362012541,1747936233123,-420.0,0.00033149,5]
[362012543,1747936233132,-420.0,0.00033149,5]
[362012545,1747936233143,-420.0,0.00033149,5]
[362012547,1747936233153,-420.0,0.00033149,5]
[362012549,1747936233163,-420.0,0.00033149,5]
[362012551,1747936233173,-420.0,0.00033149,5]
[362012553,1747936233183,-420.0,0.00033149,5]
[362012555,1747936233193,-420.0,0.00033149,5]
[362012557,1747936233203,-420.0,0.00033149,5]
[362012559,1747936233212,-420.0,0.00033149,5]
[362012561,1747936233222,-411.97421245,0.00033149,5]
[362012563,1747936233232,-277.68728801,0.00033149,5]
[362012565,1747936233245,-142.31271199,0.00033149,5]
[362012567,1747936233255,-420.0,0.00033149,5]
[362012569,1747936233266,-233.31354315,0.00033149,5]
[362012571,1747936233276,-420.0,0.00033149,5]
[362012573,1747936233285,-420.0,0.00033149,5]
[362012575,1747936233295,-420.0,0.00033149,5]
[362012577,1747936233305,-420.0,0.00033149,5]
[362012579,1747936233314,-420.0,0.00033149,5]
[362012580,1747936233324,-637.82,0.00033149,5]
[362012582,1747936233334,-420.0,0.00033149,5]
[362012584,1747936233343,-472.75908818,0.00033149,5]
[362012586,1747936233353,-420.0,0.00033149,5]
[362012588,1747936233363,-420.0,0.00033149,5]
[362012591,1747936233373,-420.0,0.00033149,5]
[362012592,1747936233384,-420.0,0.00033149,5]
[362012595,1747936233395,-420.0,0.00033149,5]
[362012597,1747936233405,-420.0,0.00033149,5]
[362012598,1747936233415,-420.0,0.00033149,5]
[362012600,1747936233424,-420.0,0.00033149,5]
[362012602,1747936233434,-530.21,0.00033149,5]
[362012604,1747936233444,-420.0,0.00033149,5]
[362012606,1747936233453,-420.0,0.00033149,5]
[362012608,1747936233463,-420.0,0.00033149,5]
[362012610,1747936233473,-420.0,0.00033149,5]
[362012612,1747936233483,-420.0,0.00033149,5]
[362012614,1747936233493,-420.0,0.00033149,5]
[362012616,1747936233502,-380.92909076,0.00033149,5]
[362012618,1747936233512,-420.0,0.00033149,5]
[362012620,1747936233521,-420.0,0.00033149,5]
[362012622,1747936233531,-420.0,0.00033149,5]
[362012624,1747936233541,-420.0,0.00033149,5]
[362012626,1747936233553,-445.31,0.00033149,5]
[362012628,1747936233562,-434.85,0.00033149,5]
[362012630,1747936233571,-420.0,0.00033149,5]
[362012632,1747936233581,-39.29229237,0.00033149,5]
[362012634,1747936233598,-380.70770763,0.00033149,5]
[362012636,1747936233608,-493.93,0.00033149,5]
[362012638,1747936233617,-420.0,0.00033149,5]
[362012640,1747936233627,-420.0,0.00033149,5]
[362012642,1747936233638,-420.0,0.00033149,5]
[362012644,1747936233649,-473.2,0.00033149,5]
[362012646,1747936233659,-420.0,0.00033149,5]
[362012648,1747936233668,-420.0,0.00033149,5]
[362012650,1747936233678,-420.0,0.00033149,5]
[362012652,1747936233687,-420.0,0.00033149,5]
[362012654,1747936233697,-420.0,0.00033149,5]
[362012656,1747936233706,-420.0,0.00033149,5]
[362012658,1747936233715,-420.0,0.00033149,5]
[362012660,1747936233724,-420.0,0.00033149,5]
[362012663,1747936233734,-420.0,0.00033149,5]
[362012664,1747936233748,-536.6,0.00033149,5]
[362012666,1747936233758,-3.19729914,0.00033149,5]
[362012669,1747936233770,-416.80270086,0.00033149,5]
[362012671,1747936233779,-132.49729914,0.00033149,5]
[362013039,1747936238308,-400.0,0.00032637,3]
[362013041,1747936238320,-287.50270086,0.00033149,5]
[362013044,1747936238329,-420.0,0.00033149,5]
[362013046,1747936238339,-420.0,0.00033149,5]
[362013048,1747936238348,-420.0,0.00033149,5]
[362013050,1747936238358,-461.7,0.00033149,5]
[362013052,1747936238368,-420.0,0.00033149,5]
[362013053,1747936238378,-476.39,0.00033149,5]
[362013056,1747936238387,-420.0,0.00033149,5]
[362013058,1747936238397,-420.0,0.00033149,5]
[362013060,1747936238407,-169.96684025,0.00033149,5]
[362013062,1747936238416,-420.0,0.00033149,5]
[362013064,1747936238426,-420.0,0.00033149,5]
[362013066,1747936238435,-746.94,0.00033149,5]
[362013068,1747936238444,-420.0,0.00033149,5]
[362013070,1747936238453,-420.0,0.00033149,5]
[362013072,1747936238462,-420.0,0.00033149,5]
[362013074,1747936238471,-507.10841205,0.00033149,5]
[362013076,1747936238480,-420.0,0.00033149,5]
[362013078,1747936238491,-420.0,0.00033149,5]
[362013080,1747936238500,-420.0,0.00033149,5]
[362013082,1747936238510,-420.0,0.00033149,5]
[362013084,1747936238520,-420.0,0.00033149,5]
[362013086,1747936238529,-420.0,0.00033149,5]
[362013088,1747936238539,-420.0,0.00033149,5]
[362013090,1747936238553,-420.0,0.00033149,5]
[362013092,1747936238562,-420.0,0.00033149,5]
[362013094,1747936238572,-420.0,0.00033149,5]
[362013096,1747936238582,-420.0,0.00033149,5]
[362013098,1747936238591,-420.0,0.00033149,5]
[362013100,1747936238602,-420.0,0.00033149,5]
[362013102,1747936238613,-420.0,0.00033149,5]
[362013104,1747936238622,-420.0,0.00033149,5]
[362013106,1747936238634,-420.0,0.00033149,5]
[362013108,1747936238644,-452.73,0.00033149,5]
[362013110,1747936238654,-420.0,0.00033149,5]
[362013112,1747936238663,-420.0,0.00033149,5]
[362013114,1747936238673,-420.0,0.00033149,5]
[362013116,1747936238682,-420.0,0.00033149,5]
[362013118,1747936238692,-420.0,0.00033149,5]
[362013120,1747936238701,-560.76,0.00033149,5]
[362013122,1747936238711,-420.0,0.00033149,5]
[362013124,1747936238722,-420.0,0.00033149,5]
[362013126,1747936238732,-420.0,0.00033149,5]
[362013128,1747936238742,-420.0,0.00033149,5]
[362013130,1747936238752,-420.0,0.00033149,5]
[362013132,1747936238762,-420.0,0.00033149,5]
[362013134,1747936238771,-420.0,0.00033149,5]
[362013137,1747936238782,-420.0,0.00033149,5]
[362013139,1747936238793,-420.0,0.00033149,5]
[362013141,1747936238804,-420.0,0.00033149,5]
[362013143,1747936238815,-420.0,0.00033149,5]
[362013145,1747936238824,-474.36524659,0.00033149,5]
[362013147,1747936238834,-316.87,0.00033165,2]
[362013149,1747936238844,-2169.33148095,0.00033322,2]
[362013151,1747936238854,-553.84,0.00033389,2]
[362013153,1747936238863,-207.4,0.00033402,2]
[362013155,1747936238874,-500.0,0.00033421,7]
[362013157,1747936238883,-500.0,0.00033421,7]
[362013159,1747936238893,-500.0,0.00033421,7]
[362013161,1747936238903,-631.06354584,0.00033421,7]
[362013163,1747936238913,-420.0,0.00033422,5]
[362013165,1747936238923,-420.0,0.00033422,5]
[362013167,1747936238933,-420.0,0.00033422,5]
[362013169,1747936238943,-420.0,0.00033422,5]
[362013171,1747936238952,-420.0,0.00033422,5]
[362013173,1747936238961,-420.0,0.00033422,5]
[362013175,1747936238971,-420.0,0.00033422,5]
[362013177,1747936238981,-420.0,0.00033422,5]
[362013179,1747936238990,-420.0,0.00033422,5]
[362013181,1747936239000,-420.0,0.00033422,5]
[362013183,1747936239009,-420.0,0.00033422,5]
[362013185,1747936239019,-420.0,0.00033422,5]
[362013187,1747936239029,-420.0,0.00033422,5]
[362013189,1747936239038,-420.0,0.00033422,5]
[362013191,1747936239048,-420.0,0.00033422,5]
[362013192,1747936239057,-420.0,0.00033422,5]
[362013194,1747936239067,-420.0,0.00033422,5]
[362013196,1747936239077,-420.0,0.00033422,5]
[362013198,1747936239087,-420.0,0.00033422,5]
[362013201,1747936239098,-150.812497,0.00033422,5]
[362013202,1747936239107,-420.0,0.00033422,5]
[362013204,1747936239118,-420.0,0.00033422,5]
[362013206,1747936239128,-420.0,0.00033422,5]
[362013208,1747936239137,-420.0,0.00033422,5]
[362013210,1747936239147,-420.0,0.00033422,5]
[362013212,1747936239157,-185.842115,0.00033422,5]
[362013214,1747936239167,-420.0,0.00033422,5]
[362013217,1747936239176,-784.41,0.00033422,5]
[362013218,1747936239186,-420.0,0.00033422,5]
[362013221,1747936239196,-152.959474,0.00033422,5]
[362013223,1747936239206,-420.0,0.00033422,5]
[362013224,1747936239216,-147.25659851,0.00033422,5]
[362013227,1747936239230,-272.74340149,0.00033422,5]